fUSD/lending_fUSD_20260213
["ID","MTS","AMOUNT","RATE_DAILY","PERIOD"]
[405283615,1770941431384,-300.0,9.545e-05,2]
[405283616,1770941431393,-300.0,9.545e-05,2]
[405283617,1770941431403,-300.0,9.545e-05,2]
[405283618,1770941431412,-300.0,9.545e-05,2]
[405283619,1770941431422,-1200.0,9.545e-05,2]
[405283620,1770941431432,-250.0,9.545e-05,2]
[405283621,1770941431442,-1208.2,9.546e-05,2]
[405283622,1770941431451,-200.0,9.546e-05,2]
[405283623,1770941431462,-639.5,9.546e-05,2]
[405283624,1770941431472,-1473.69,9.546e-05,2]
[405283625,1770941431482,-398.09,9.734e-05,2]
[405283626,1770941431491,-250.0,9.874e-05,2]
[405283627,1770941431501,-1449.69776,0.00010185,2]
[405283628,1770941431517,-675.352,0.00010185,2]
[405283629,1770941431533,-1525.13731268,0.00010185,2]
[405283630,1770941431551,-592.36206145,0.00010185,2]
[405283631,1770941431615,-13998.28086587,0.00010185,2]
[405283632,1770941431625,-195.181519,0.00010257,2]
[405283633,1770941431635,-353.51883824,0.00010412,2]
[405283634,1770941431645,-312.5954,0.0001048,2]
[405283635,1770941431655,-260.99275379,0.0001048,2]
[405283636,1770941431668,-300.0,0.00010499,2]
[405283637,1770941431677,-402.0,0.00010499,2]
[405283638,1770941431687,-420.0,0.00010499,2]
[405283639,1770941431696,-1680.0,0.00010499,2]
[405283640,1770941431709,-250.0,0.000105,2]
[405283641,1770941431719,-253.04,0.000105,2]
[405283642,1770941431728,-200.0,0.000106,3]
[405283643,1770941431740,-150.0,0.00010698,2]
[405283644,1770941431749,-2500.0,0.00010699,2]
[405283645,1770941431759,-999.99,0.00010699,2]
[405283646,1770941431768,-6252.05,0.00010699,2]
[405283647,1770941431778,-150.99,0.00010699,2]
[405283648,1770941431788,-9999.99,0.00010699,2]
[405283650,1770941431797,-345.54,0.00010699,2]
[405283652,1770941431807,-500.0,0.000107,3]
[405283654,1770941431817,-8945.10424836,0.000107,2]
[405283656,1770941431826,-196.7519813,0.000107,2]
[405283658,1770941431835,-9598.92472002,0.000107,2]
[405283660,1770941431845,-639.5,0.00010739,2]
[405283661,1770941431854,-3091.62,0.00010765,2]
[405283664,1770941431864,-556.15833631,0.00010789,2]
[405283665,1770941431873,-600.18595405,0.00010798,2]
[405283667,1770941431883,-60274.53440292,0.00010799,2]
[405283668,1770941431894,-31983.1342548,0.00010799,2]
[405283669,1770941431906,-117080.96215285,0.00010799,2]
[405283676,1770941437653,-580.23789574,0.000107,2]
[405283677,1770941437723,-764.97851432,0.000107,2]
[405283678,1770941437733,-2185.06841549,0.000107,2]
[405283679,1770941437745,-4580.0495661,0.00010799,2]
[405283680,1770941437758,-583.72885539,0.00010799,2]
[405283681,1770941437796,-33552.04874262,0.00010799,2]
[405283682,1770941438040,-3251945.54202532,0.00010799,2]
[405283683,1770941438051,-700.0,0.000108,3]
[405283684,1770941438071,-419.0,0.00010854,2]
[405283685,1770941438084,-270.0,0.00010854,2]
[405283686,1770941438095,-450.0,0.00010898,2]
[405283687,1770941438106,-450.0,0.00010898,14]
[405283688,1770941438118,-8184.539,0.00010899,2]
[405283689,1770941438130,-6297.8307,0.00010899,2]
[405283690,1770941438141,-1497.77,0.00010899,2]
[405283691,1770941438153,-224.185,0.00010899,2]
[405283692,1770941438164,-1000.0,0.000109,3]
[405283693,1770941438174,-3574.53282086,0.000109,2]
[405283694,1770941438186,-500.0,0.000109,2]
[405283695,1770941438197,-251.0,0.00010936,2]
[405283696,1770941438208,-162.0,0.00010936,2]
[405283697,1770941438219,-150.0,0.00010959,2]
[405283698,1770941438231,-9412.39,0.00010959,2]
[405283699,1770941438243,-267.5,0.00011,2]
[405283700,1770941438253,-167.0,0.00011018,2]
[405283701,1770941438264,-556.15833631,0.00011089,2]
[405283702,1770941438275,-44837.95466386,0.00011099,2]
[405283703,1770941438286,-14481.75584665,0.00011099,2]
[405283704,1770941438297,-220.0,0.00011136,2]
[405283705,1770941438307,-9505.23,0.00011233,2]
[405283706,1770941438318,-2351.0,0.00011549,2]
[405283707,1770941438329,-587.0,0.00011549,2]
[405283709,1770941438341,-639.5,0.00011932,2]
[405283711,1770941438352,-258.5311,0.00012004,2]
[405283713,1770941438363,-22348.8,0.00012055,2]
[405283715,1770941438374,-35558.57,0.00012187,2]
[405283717,1770941438385,-500.25,0.00012469,2]
[405283719,1770941438396,-250.0,0.00012612,2]
[405283720,1770941438407,-3292.0,0.00012704,2]
[405283721,1770941438418,-823.0,0.00012704,2]
[405283722,1770941438429,-248.07,0.00012859,2]
[405283723,1770941438440,-639.5,0.00013125,2]
[405283725,1770941438450,-599.2449,0.00013164,2]
[405283726,1770941438465,-32828.4274,0.00013164,2]
[405283727,1770941438476,-1000.0,0.00013164,2]
[405283728,1770941438488,-3240.0,0.00013425,2]
[405283729,1770941438499,-393.83,0.00013526,2]
[405283730,1770941438510,-500.0,0.00013673,2]
[405283731,1770941438521,-500.0,0.00013673,2]
[405283732,1770941438532,-500.0,0.00013673,2]
[405283733,1770941438542,-500.0,0.00013673,2]
[405283734,1770941438553,-500.0,0.00013698,2]
[405283735,1770941438564,-500.0,0.00013698,2]
[405283736,1770941438574,-500.0,0.00013698,2]
[405283737,1770941438585,-500.0,0.00013698,2]
[405283738,1770941438595,-500.0,0.00013698,2]
[405283739,1770941438606,-500.0,0.00013698,2]
[405283740,1770941438616,-500.0,0.00013698,2]
[405283741,1770941438626,-500.0,0.00013698,2]
[405283742,1770941438636,-500.0,0.00013698,2]
[405283743,1770941438646,-500.0,0.00013698,2]
[405283744,1770941438657,-500.0,0.00013698,2]
[405283745,1770941438669,-500.0,0.00013698,2]
[405283746,1770941438680,-500.0,0.00013698,2]
[405283747,1770941438690,-293.36,0.00013698,2]
[405283748,1770941438701,-197.00581742,0.00013698,2]
[405283749,1770941438711,-500.0,0.00013698,2]
[405283750,1770941438722,-500.0,0.00013698,2]
[405283751,1770941438734,-500.0,0.00013698,2]
[405283752,1770941438744,-500.0,0.00013698,2]
[405283753,1770941438755,-500.0,0.00013698,2]
[405283754,1770941438765,-500.0,0.00013698,2]
[405283755,1770941438776,-500.0,0.00013698,2]
[405283756,1770941438786,-500.0,0.00013698,2]
[405283757,1770941438795,-331.26,0.00013698,2]
[405283758,1770941438805,-500.0,0.00013698,2]
[405283759,1770941438816,-500.0,0.00013698,2]
[405283760,1770941438827,-500.0,0.00013698,2]
[405283761,1770941438837,-500.0,0.00013698,2]
[405283762,1770941438851,-500.0,0.00013698,2]
[405283763,1770941438861,-500.0,0.00013698,2]
[405283764,1770941438872,-500.0,0.00013698,2]
[405283765,1770941438882,-500.0,0.00013698,2]
[405283766,1770941438891,-500.0,0.00013698,2]
[405283767,1770941438901,-500.0,0.00013698,2]
[405283768,1770941438911,-500.0,0.00013698,2]
[405283769,1770941438922,-500.0,0.00013698,2]
[405283770,1770941438933,-500.0,0.00013698,2]
[405283771,1770941438943,-500.0,0.00013698,2]
[405283772,1770941438953,-500.0,0.00013698,2]
[405283773,1770941438963,-1218.82,0.00013698,2]
[405283774,1770941438972,-1218.82,0.00013698,2]
[405283775,1770941438983,-1218.82,0.00013698,2]
[405283776,1770941438993,-1218.82,0.00013698,2]
[405283777,1770941439002,-1218.82,0.00013698,2]
[405283778,1770941439012,-1218.82,0.00013698,2]
[405283779,1770941439023,-1218.82,0.00013698,2]
[405283780,1770941439033,-1218.82,0.00013698,2]
[405283781,1770941439046,-1218.82,0.00013698,2]
[405283782,1770941439056,-1218.82,0.00013698,2]
[405283783,1770941439066,-1218.82,0.00013698,2]
[405283784,1770941439076,-1218.82,0.00013698,2]
[405283785,1770941439086,-1218.82,0.00013698,2]
[405283786,1770941439097,-1218.82,0.00013698,2]
[405283787,1770941439106,-1218.82,0.00013698,2]
[405283788,1770941439116,-500.0,0.00013698,2]
[405283789,1770941439126,-500.0,0.00013698,2]
[405283790,1770941439137,-500.0,0.00013698,2]
[405283791,1770941439146,-500.0,0.00013698,2]
[405283792,1770941439157,-500.0,0.00013698,2]
[405283793,1770941439167,-500.0,0.00013698,2]
[405283794,1770941439177,-500.0,0.00013698,2]
[405283795,1770941439187,-500.0,0.00013698,2]
[405283796,1770941439197,-500.0,0.00013698,2]
[405283797,1770941439207,-500.0,0.00013698,2]
[405283798,1770941439219,-343.40342473,0.00013698,2]
[405283799,1770941439229,-500.0,0.00013698,2]
[405283800,1770941439239,-500.0,0.00013698,2]
[405283801,1770941439253,-500.0,0.00013698,2]
[405283802,1770941439263,-305.08010906,0.00013698,2]
[405283803,1770941439528,-500.0,0.00013698,2]
[405283804,1770941439539,-500.0,0.00013698,2]
[405283805,1770941439549,-500.0,0.00013698,2]
[405283806,1770941439560,-178.94,0.00013698,2]
[405283807,1770941439572,-500.0,0.00013698,2]
[405283808,1770941439581,-500.0,0.00013698,2]
[405283809,1770941439591,-500.0,0.00013698,2]
[405283810,1770941439600,-500.0,0.00013698,2]
[405283811,1770941439610,-500.0,0.00013698,2]
[405283812,1770941439620,-263.32,0.00013698,2]
[405283813,1770941439630,-500.0,0.00013698,2]
[405283814,1770941439640,-500.0,0.00013698,2]
[405283815,1770941439650,-500.0,0.00013698,2]
[405283816,1770941439660,-500.0,0.00013698,2]
[405283817,1770941439674,-500.0,0.00013698,2]
[405283818,1770941439684,-500.0,0.00013698,2]
[405283819,1770941439694,-175.38923692,0.00013698,2]
[405283820,1770941439704,-185.13,0.00013698,2]
[405283821,1770941439715,-500.0,0.00013698,2]
[405283822,1770941439726,-500.0,0.00013698,2]
[405283823,1770941439737,-500.0,0.00013698,2]
[405283824,1770941439747,-500.0,0.00013698,2]
[405283825,1770941439757,-500.0,0.00013698,2]
[405283826,1770941439767,-500.0,0.00013698,2]
[405283827,1770941439777,-500.0,0.00013698,2]
[405283828,1770941439787,-500.0,0.00013698,2]
[405283829,1770941439797,-294.19236379,0.00013698,2]
[405283830,1770941439807,-500.0,0.00013698,2]
[405283831,1770941439818,-500.0,0.00013698,2]
[405283832,1770941439828,-500.0,0.00013698,2]
[405283833,1770941439838,-500.0,0.00013698,2]
[405283834,1770941439848,-500.0,0.00013698,2]
[405283835,1770941439859,-453.70083741,0.00013698,2]
[405283836,1770941439868,-500.0,0.00013698,2]
[405283837,1770941439879,-500.0,0.00013698,2]
[405283838,1770941439889,-500.0,0.00013698,2]
[405283839,1770941439899,-500.0,0.00013698,2]
[405283840,1770941439909,-500.0,0.00013698,2]
[405283841,1770941439919,-500.0,0.00013698,2]
[405283842,1770941439929,-500.0,0.00013698,2]
[405283843,1770941439939,-500.0,0.00013698,2]
[405283844,1770941439950,-500.0,0.00013698,2]
[405283845,1770941439960,-500.0,0.00013698,2]
[405283846,1770941439981,-500.0,0.00013698,2]
[405283847,1770941439992,-500.0,0.00013698,2]
[405283848,1770941440003,-500.0,0.00013698,2]
[405283849,1770941440014,-500.0,0.00013698,2]
[405283850,1770941440026,-500.0,0.00013698,2]
[405283851,1770941440038,-1200.0,0.000139,5]
[405283852,1770941440049,-4609.0,0.00013974,2]
[405283853,1770941440060,-1152.0,0.00013974,2]
[405283854,1770941440071,-1000.0,0.00014221,2]
[405283855,1770941440081,-1000.0,0.00014221,2]
[405283856,1770941440090,-1000.0,0.00014221,2]
[405283857,1770941440102,-1000.0,0.00014221,2]
[405283858,1770941440113,-639.5,0.00014319,2]
[405283859,1770941440123,-44837.95466377,0.00014409,2]
[405283860,1770941440134,-14481.7558466,0.00014409,2]
[405283861,1770941440145,-258.8,0.00014452,2]
[405283862,1770941440155,-9407.49,0.00014504,2]
[405283863,1770941440168,-456.85760302,0.00014595,2]
[405283864,1770941440178,-1218.82,0.00014595,2]
[405283866,1770941440188,-500.0,0.00014595,2]
[405283867,1770941440198,-962.0003218,0.00014768,2]
[405283868,1770941440208,-1500.0,0.00014768,2]
[405283869,1770941440220,-1500.0,0.00014768,2]
[405283870,1770941440230,-1500.0,0.00014768,2]
[405283872,1770941440240,-166.66,0.00014886,2]
[405283873,1770941440251,-155.32691761,0.000149,2]
[405283874,1770941440261,-155.32691761,0.000149,2]
[405283875,1770941440270,-1397.046626,0.00014934,7]
[405283876,1770941440280,-250.0,0.00015,2]
[405283878,1770941440290,-900.0,0.00015068,2]
[405283880,1770941440300,-160.0,0.00015197,2]
[405283881,1770941440311,-1500.0,0.00015316,2]
[405283882,1770941440321,-2000.0,0.00015316,2]
[405283883,1770941440331,-1621.94316071,0.00015316,2]
[405283884,1770941440341,-6453.0,0.00015372,2]
[405283885,1770941440351,-1613.0,0.00015372,2]
[405283886,1770941440364,-166.66,0.00015377,2]
[405283887,1770941440375,-3574.53282082,0.00015478,2]
[405283888,1770941440385,-2500.0,0.00015864,2]
[405283889,1770941440395,-166.66,0.00015869,2]
[405283890,1770941440406,-151.19282812,0.00016,2]
[405283891,1770941440416,-151.19282812,0.000161,2]
[405283892,1770941440426,-9999.99,0.00016116,2]
[405283893,1770941440436,-503.40722457,0.00016173,2]
[405283894,1770941440446,-500.0,0.00016173,2]
[405283895,1770941440456,-500.0,0.00016173,2]
[405283896,1770941440465,-500.0,0.00016173,2]
[405283897,1770941440476,-500.0,0.00016173,2]
[405283898,1770941440486,-501.49937878,0.00016173,2]
[405283899,1770941440495,-500.0,0.00016173,2]
[405283900,1770941440505,-500.0,0.00016173,2]
[405283901,1770941440515,-163.75258398,0.00016173,2]
[405283902,1770941440525,-501.00396845,0.00016173,2]
[405283903,1770941440535,-500.0,0.00016173,2]
[405283904,1770941440545,-523.24197668,0.00016173,2]
[405283905,1770941440555,-501.90023215,0.00016173,2]
[405283906,1770941440568,-500.0,0.00016173,2]
[405283907,1770941440578,-162.27274498,0.00016173,2]
[405283908,1770941440589,-500.0,0.00016173,2]
[405283909,1770941440599,-500.0,0.00016173,2]
[405283910,1770941440609,-500.0,0.00016173,2]
[405283911,1770941440620,-500.0,0.00016173,2]
[405283912,1770941440630,-500.0,0.00016173,2]
[405283913,1770941440640,-502.48032589,0.00016173,2]
[405283914,1770941440650,-160.89865825,0.00016173,2]
[405283915,1770941440663,-500.0,0.00016173,2]
[405283916,1770941440673,-160.31878935,0.00016173,2]
[405283917,1770941440683,-500.0,0.00016173,2]
[405283918,1770941440695,-161.74480548,0.00016173,2]
[405283919,1770941440705,-500.0,0.00016173,2]
[405283920,1770941440715,-500.0,0.00016173,2]
[405283921,1770941440725,-500.0,0.00016173,2]
[405283922,1770941440736,-500.0,0.00016173,2]
[405283923,1770941440747,-500.0,0.00016173,2]
[405283924,1770941440756,-500.0,0.00016173,2]
[405283925,1770941440769,-487.11741072,0.00016173,2]
[405283926,1770941440779,-500.48983529,0.00016173,2]
[405283927,1770941440789,-500.0,0.00016173,2]
[405283928,1770941440799,-500.0,0.00016173,2]
[405283929,1770941440809,-500.0,0.00016173,2]
[405283930,1770941440819,-500.0,0.00016173,2]
[405283931,1770941440829,-592.44420192,0.00016173,2]
[405283932,1770941440839,-500.0,0.00016173,2]
[405283933,1770941440849,-595.5014334,0.00016173,2]
[405283934,1770941440859,-500.0,0.00016173,2]
[405283935,1770941440869,-500.0,0.00016173,2]
[405283936,1770941440879,-502.2639459,0.00016173,2]
[405283937,1770941440888,-500.0,0.00016173,2]
[405283938,1770941440899,-500.0,0.00016173,2]
[405283939,1770941440909,-1345.21641002,0.00016274,2]
[405283940,1770941440919,-166.66,0.0001636,2]
[405283941,1770941440931,-1942.50840037,0.00016412,2]
[405283942,1770941440941,-900.0,0.00016438,2]
[405283943,1770941440951,-165.9,0.00016712,2]
[405283944,1770941440972,-1000.0,0.00016721,2]
[405283945,1770941440982,-1000.0,0.00016721,2]
[405283946,1770941440991,-1000.0,0.00016721,2]
[405283947,1770941441001,-1000.0,0.00016721,2]
[405283948,1770941441011,-1000.0,0.00016721,2]
[405283949,1770941441020,-1000.0,0.00016721,2]
[405283950,1770941441030,-1000.0,0.00016721,2]
[405283951,1770941441040,-1000.0,0.00016721,2]
[405283952,1770941441050,-1000.0,0.00016721,2]
[405283953,1770941441060,-1000.0,0.00016721,2]
[405283954,1770941441070,-1000.0,0.00016721,2]
[405283955,1770941441080,-1000.0,0.00016721,2]
[405283956,1770941441090,-1000.0,0.00016721,2]
[405283957,1770941441103,-1000.0,0.00016721,2]
[405283958,1770941441114,-166.66,0.00016852,2]
[405283959,1770941441123,-9035.0,0.00016909,2]
[405283960,1770941441133,-2258.0,0.00016909,2]
[405283961,1770941441142,-443.0,0.00016958,2]
[405283962,1770941441153,-1999.0,0.00016986,2]
[405283963,1770941441162,-443.0,0.00016996,2]
[405283964,1770941441172,-300.0,0.00017,2]
[405283965,1770941441182,-443.0,0.00017007,2]
[405283966,1770941441192,-443.0,0.00017011,2]
[405283967,1770941441203,-443.0,0.00017097,2]
[405283968,1770941441213,-443.0,0.00017133,2]
[405283969,1770941441223,-443.0,0.00017136,2]
[405283970,1770941441233,-443.0,0.00017216,2]
[405283971,1770941441243,-443.0,0.00017265,2]
[405283972,1770941441254,-500.0,0.00017268,2]
[405283973,1770941441264,-492.57355052,0.00017268,2]
[405283974,1770941441274,-1500.0,0.00017268,2]
[405283975,1770941441284,-1500.0,0.00017268,2]
[405283976,1770941441294,-1503.05497251,0.00017268,2]
[405283977,1770941441304,-501.10321426,0.00017268,2]
[405283978,1770941441314,-508.3698363,0.00017268,2]
[405283979,1770941441324,-393.35276973,0.00017268,2]
[405283980,1770941441334,-1500.0,0.00017268,2]
[405283981,1770941441344,-936.82859563,0.00017268,2]
[405283982,1770941441354,-186.25877618,0.00017268,2]
[405283983,1770941441364,-299.43512416,0.00017268,2]
[405283984,1770941441374,-1500.0,0.00017268,2]
[405283985,1770941441383,-443.0,0.00017336,2]
[405283986,1770941441393,-166.66,0.00017343,2]
[405283987,1770941441404,-443.0,0.000174,2]
[405283988,1770941441414,-443.0,0.00017479,2]
[405283989,1770941441424,-443.0,0.00017507,2]
[405283990,1770941441434,-443.0,0.00017524,2]
[405283991,1770941441444,-443.0,0.00017657,2]
[405283992,1770941441453,-500.0,0.00017698,2]
[405283993,1770941441463,-443.0,0.00017701,2]
[405283994,1770941441472,-500.0,0.00017753,2]
[405283995,1770941441482,-443.0,0.00017797,2]
[405283996,1770941441492,-500.0,0.00017808,2]
[405283997,1770941441502,-151.16031597,0.00017808,2]
[405283998,1770941441512,-500.0,0.00017808,2]
[405283999,1770941441522,-800.0,0.00017808,2]
[405284000,1770941441532,-443.0,0.0001781,2]
[405284001,1770941441542,-500.0,0.00017816,2]
[405284002,1770941441552,-2000.0,0.00017816,2]
[405284003,1770941441563,-506.26626962,0.00017816,2]
[405284004,1770941441573,-202.15927111,0.00017816,2]
[405284005,1770941441583,-304.68001975,0.00017862,2]
[405284006,1770941441593,-500.0,0.00017863,2]
[405284007,1770941441602,-99179.66125594,0.000179,2]
[405284008,1770941441612,-500.0,0.00017918,2]
[405284009,1770941441622,-500.39366655,0.00017959,3]
[405284010,1770941441633,-500.0,0.00017972,2]
[405284011,1770941441643,-150.0,0.00017999,2]
[405284012,1770941441652,-500.0,0.00018027,2]
[405284013,1770941441663,-443.0,0.00018064,2]
[405284014,1770941441676,-500.0,0.00018082,2]
[405284015,1770941441686,-44837.95466377,0.00018118,2]
[405284016,1770941441696,-14481.7558466,0.00018118,2]
[405284017,1770941441706,-200.0,0.00018128,2]
[405284018,1770941441715,-500.0,0.00018137,2]
[405284019,1770941441725,-500.0,0.00018192,2]
[405284020,1770941441735,-500.0,0.00018246,2]
[405284021,1770941441745,-500.0,0.00018291,2]
[405284022,1770941441756,-500.0,0.00018301,2]
[405284023,1770941441767,-500.0,0.00018356,2]
[405284024,1770941441776,-1761.23170901,0.00018364,2]
[405284025,1770941441786,-443.0,0.00018408,2]
[405284026,1770941441796,-500.0,0.00018411,2]
[405284027,1770941441806,-500.0,0.00018466,2]
[405284028,1770941441817,-500.0,0.0001852,2]
[405284029,1770941441827,-443.0,0.00018567,2]
[405284030,1770941441837,-500.0,0.00018575,2]
[405284031,1770941441848,-443.0,0.0001858,2]
[405284032,1770941441858,-3914.0,0.000186,2]
[405284033,1770941441868,-3162.0,0.000186,2]
[405284034,1770941441879,-443.0,0.00018607,2]
[405284035,1770941441890,-500.0,0.0001863,2]
[405284036,1770941441900,-150.0,0.0001863,2]
[405284037,1770941441910,-443.0,0.00018672,2]
[405284038,1770941441920,-500.0,0.00018685,2]
[405284039,1770941441930,-443.0,0.00018693,2]
[405284040,1770941441940,-500.0,0.0001874,2]
[405284041,1770941441949,-500.0,0.00018794,2]
[405284042,1770941441959,-280.08601284,0.00018849,2]
[405284043,1770941441970,-800.0,0.00018904,2]
[405284044,1770941441981,-350.0,0.00019,2]
[405284045,1770941441991,-500.0,0.00019178,2]
[405284046,1770941442001,-250.0,0.00019178,2]
[405284047,1770941442011,-150.0,0.00019178,2]
[405284048,1770941442021,-500.0,0.00019233,2]
[405284049,1770941442031,-500.0,0.00019288,2]
[405284050,1770941442041,-165.9,0.00019658,2]
[405284051,1770941442051,-500.0,0.00019726,2]
[405284052,1770941442061,-350.0,0.00019726,2]
[405284053,1770941442071,-250.0,0.00019726,2]
[405284054,1770941442081,-500.0,0.00019781,2]
[405284055,1770941442091,-500.0,0.00019836,2]
[405284056,1770941442101,-500.0,0.0001989,2]
[405284057,1770941442111,-3259.775462,0.00019912,7]
[405284058,1770941442122,-291.888044,0.00019912,7]
[405284059,1770941442133,-631.98800815,0.00019945,2]
[405284060,1770941442143,-152.22,0.00019967,2]
[405284061,1770941442153,-3574.53282082,0.00020255,2]
[405284062,1770941442162,-450.0,0.00020274,2]
[405284063,1770941442173,-350.0,0.00020274,2]
[405284064,1770941442183,-248.07,0.00020448,2]
[405284065,1770941442193,-4427.0,0.0002046,2]
[405284066,1770941442203,-360.17252936,0.00020706,2]
[405284067,1770941442213,-601.59896259,0.00020822,2]
[405284068,1770941442223,-450.0,0.00020822,2]
[405284069,1770941442233,-328.01692885,0.00020971,2]
[405284070,1770941442243,-400.0,0.00021,2]
[405284071,1770941442252,-12544.77,0.00021068,2]
[405284073,1770941442262,-272.08856874,0.00021113,2]
[405284074,1770941442273,-6392.98,0.0002137,2]
[405284075,1770941442282,-550.0,0.0002137,2]
[405284076,1770941442292,-44837.95466377,0.00021826,2]
[405284077,1770941442302,-14481.7558466,0.00021826,2]
[405284079,1770941442312,-2000.0,0.00021917,2]
[405284081,1770941442322,-1218.82,0.00021917,2]
[405284083,1770941442333,-5000.0,0.00021918,2]
[405284085,1770941442343,-551.39550355,0.00021918,2]
[405284087,1770941442353,-500.0,0.00021918,2]
[405284089,1770941442363,-204.68,0.00021924,2]
[405284091,1770941442373,-500.0,0.00021973,2]
[405284093,1770941442383,-41890.65,0.00022,2]
[405284095,1770941442393,-805.38,0.00022,7]
[405284097,1770941442403,-500.0,0.00022028,2]
[405284099,1770941442413,-500.0,0.00022082,2]
[405284101,1770941442423,-500.0,0.00022137,2]
[405284103,1770941442433,-500.0,0.00022192,2]
[405284105,1770941442442,-500.0,0.00022247,2]
[405284107,1770941442451,-500.0,0.00022302,2]
[405284108,1770941442461,-385.05923648,0.00022356,2]
[405284109,1770941442471,-9505.23,0.00022466,2]
[405284110,1770941442480,-3027.0,0.00022506,2]
[405284111,1770941442490,-165.9,0.00022603,2]
[405284112,1770941442500,-450.0,0.00023,2]
[405284113,1770941442509,-160.0,0.00023,2]
[405284114,1770941442518,-151.51,0.000233,14]
[405284115,1770941442529,-152.22,0.00023833,2]
[405284116,1770941442538,-393.83,0.00024338,2]
[405284117,1770941442547,-198.9767698,0.00024433,7]
[405284118,1770941442557,-154.20654679,0.00024433,7]
[405284119,1770941442568,-454.53,0.000246,14]
[405284120,1770941442578,-41890.65,0.000246,2]
[405284121,1770941442588,-805.38,0.000246,7]
[405284122,1770941442598,-2000.0,0.00024657,12]
[405284123,1770941442608,-501.59,0.00024658,2]
[405284124,1770941442618,-1000.0,0.00024658,2]
[405284125,1770941442629,-150.0,0.00024658,2]
[405284126,1770941442638,-248.07,0.00024724,2]
[405284127,1770941442649,-500.0,0.00025,2]
[405284128,1770941442659,-3574.53282082,0.00025033,2]
[405284129,1770941442671,-44837.95466377,0.00025535,2]
[405284130,1770941442682,-14481.7558466,0.00025535,2]
[405284131,1770941442692,-165.9,0.00025548,2]
[405284132,1770941442703,-150.0,0.0002589,2]
[405284133,1770941442712,-1087.05013443,0.00026415,2]
[405284134,1770941442723,-472.74529557,0.00026415,2]
[405284135,1770941442733,-550.0,0.00027,2]
[405284136,1770941442744,-150.0,0.00027185,2]
[405284137,1770941442754,-150.0,0.00027369,2]
[405284138,1770941442764,-2000.0,0.00027397,22]
[405284139,1770941442775,-160.03144078,0.00027397,2]
[405284140,1770941442785,-501.59,0.00027397,2]
[405284141,1770941442795,-150.0,0.00027397,5]
[405284142,1770941442805,-300.0,0.00027397,5]
[405284143,1770941442815,-211.61089083,0.00027397,4]
[405284144,1770941442826,-8945.10424834,0.00027409,2]
[405284145,1770941442836,-500.0,0.00027561,120]
[405284146,1770941442846,-250.0,0.00027945,5]
[405284147,1770941442856,-600.0,0.00027945,5]
[405284148,1770941442866,-805.38,0.00028,7]
[405284149,1770941442876,-165.9,0.00028493,2]
[405284150,1770941442886,-352.42026827,0.00028493,5]
[405284151,1770941442896,-1010.4999506,0.00028493,5]
[405284152,1770941442907,-41890.65,0.000285,2]
[405284153,1770941442916,-150.0,0.00028544,2]
[405284154,1770941442926,-600.0,0.00029,2]
[405284155,1770941442936,-306.22279072,0.00029025,2]
[405284156,1770941442946,-152.22,0.00029157,2]